[Event "50th Ciudad Sevilla 2024"]
[Site "Sevilla"]
[Date "2025.01.13"]
[Round "3.10"]
[White "Ilinca, Felix-Antonio"]
[Black "Saad, Gabriel"]
[Result "1-0"]
[Annotator "ChessBase"]
[ECO "B12"]
[WhiteElo "2440"]
[BlackElo "2148"]
[PlyCount "59"]
[EventDate "2025.01.10"]
[EventType "swiss"]
[EventCountry "ESP"]
[SourceTitle "playchess.com"]
[Source "ChessBase"]
[SourceQuality "1"]
[TimeControl "90+30"]

1. e4 {[%emt 0:00:00]} c6 {[%emt 0:00:00]} 2. d4 {[%emt 0:00:00]} d5 {[%emt 0:00:00]} 3. e5 {[%emt 0:00:00]} c5 {[%emt 0:00:00]} 4. dxc5 {[%emt 0:00:00]} e6 {[%emt 0:00:00]} 5. Bd3 {[%emt 0:00:00]} Bxc5 {[%emt 0:00:00]} 6. Qg4 {[%emt 0:00:00]} Ne7 {[%emt 0:00:00]} 7. Nf3 {[%emt 0:00:00]} Nbc6 {[%emt 0:00:00]} 8. O-O {[%emt 0:00:00]} Ng6 {[%emt 0:00:00]} 9. Re1 {[%emt 0:00:00]} O-O {[%emt 0:00:00]} 10. Nc3 {[%emt 0:00:00]} f5 {[%emt 0:00:00]} 11. Qg3 {[%emt 0:00:00]} Be7 {[%emt 0:00:00]} 12. Ne2 {[%emt 0:00:00]} Kh8 {[%emt 0:00:00]} 13. Nf4 {[%emt 0:00:00]} Nxf4 {[%emt 0:00:00]} 14. Bxf4 {[%emt 0:00:00]} Nb4 {[%emt 0:00:00]} 15. h4 {[%emt 0:00:00]} h6 {[%emt 0:00:00]} 16. Rad1 {[%emt 0:00:00]} Bd7 {[%emt 0:00:00]} 17. c3 {[%emt 0:00:00]} Nxd3 {[%emt 0:00:00]} 18. Rxd3 {[%emt 0:00:00]} Bb5 {[%emt 0:00:00]} 19. Rdd1 {[%emt 0:00:00]} Rc8 {[%emt 0:00:00]} 20. Qg6 {[%emt 0:00:00]} Bd7 {[%emt 0:00:00]} 21. Bxh6 {[%emt 0:00:00]} gxh6 {[%emt 0:00:00]} 22. Qxh6+ {[%emt 0:00:00]} Kg8 {[%emt 0:00:00]} 23. Qg6+ {[%emt 0:00:00]} Kh8 {[%emt 0:00:00]} 24. Rd3 {[%emt 0:00:00]} Bc5 {[%emt 0:00:00]} 25. Qh6+ {[%emt 0:00:00]} Kg8 {[%emt 0:00:00]} 26. b4 {[%emt 0:00:00]} Bb6 {[%emt 0:00:00]} 27. Nd4 {[%emt 0:00:00]} f4 {[%emt 0:05:05]} 28. Ree3 {[%emt 0:00:08]} Kf7 {[%emt 0:03:56]} 29. Rg3 {[%emt 0:00:44]} Ke8 {[%emt 0:00:06]} 30. Qh5+ {[%emt 0:00:12]} 1-0

[Event "50th Ciudad Sevilla 2024"]
[Site "Sevilla"]
[Date "2025.01.13"]
[Round "3.11"]
[White "Hu, Jiani"]
[Black "Druska, Juraj"]
[Result "0-1"]
[Annotator "ChessBase"]
[ECO "B26"]
[WhiteElo "2095"]
[BlackElo "2438"]
[PlyCount "130"]
[EventDate "2025.01.10"]
[EventType "swiss"]
[EventCountry "ESP"]
[SourceTitle "playchess.com"]
[Source "ChessBase"]
[SourceQuality "1"]
[TimeControl "90+30"]

1. e4 {[%emt 0:00:00]} c5 {[%emt 0:00:00]} 2. Nc3 {[%emt 0:00:00]} d6 {[%emt 0:00:00]} 3. g3 {[%emt 0:00:00]} g6 {[%emt 0:00:00]} 4. Bg2 {[%emt 0:00:00]} Bg7 {[%emt 0:00:00]} 5. d3 {[%emt 0:00:00]} Nc6 {[%emt 0:00:00]} 6. Be3 {[%emt 0:00:00]} e6 {[%emt 0:00:00]} 7. Qd2 {[%emt 0:00:00]} Rb8 {[%emt 0:00:00]} 8. Nge2 {[%emt 0:00:00]} b5 {[%emt 0:00:00]} 9. O-O {[%emt 0:00:00]} b4 {[%emt 0:00:00]} 10. Nd1 {[%emt 0:00:00]} a5 {[%emt 0:00:00]} 11. f4 {[%emt 0:00:00]} Nge7 {[%emt 0:00:00]} 12. c3 {[%emt 0:00:00]} O-O {[%emt 0:00:00]} 13. Nf2 {[%emt 0:00:00]} Qb6 {[%emt 0:00:00]} 14. Rfd1 {[%emt 0:00:00]} Ba6 {[%emt 0:00:00]} 15. g4 {[%emt 0:00:00]} d5 {[%emt 0:00:00]} 16. f5 {[%emt 0:00:00]} exf5 {[%emt 0:00:00]} 17. gxf5 {[%emt 0:00:00]} Rfd8 {[%emt 0:00:00]} 18. Ng3 {[%emt 0:00:00]} Ne5 {[%emt 0:00:00]} 19. cxb4 {[%emt 0:00:00]} Qxb4 {[%emt 0:00:00]} 20. Qxb4 {[%emt 0:00:00]} cxb4 {[%emt 0:00:00]} 21. d4 {[%emt 0:03:31]} Nc4 {[%emt 0:00:00]} 22. Bg5 {[%emt 0:02:10]} f6 {[%emt 0:02:23]} 23. Bf4 {[%emt 0:00:35]} Rbc8 {[%emt 0:00:01]} 24. b3 {[%emt 0:00:58]} g5 {[%emt 0:00:54]} 25. Bc1 {[%emt 0:01:56]} Nd6 {[%emt 0:00:23]} 26. exd5 {[%emt 0:00:49]} Ndxf5 {[%emt 0:02:09]} 27. Nxf5 {[%emt 0:01:35]} Nxf5 {[%emt 0:00:02]} 28. Ne4 {[%emt 0:00:37]} Nxd4 {[%emt 0:03:27]} 29. Rxd4 {[%emt 0:03:22]} f5 {[%emt 0:00:01]} 30. Rd1 {[%emt 0:00:20]} fxe4 {[%emt 0:03:10]} 31. Bxg5 {[%emt 0:00:25]} Bxa1 {[%emt 0:00:02]} 32. Bxd8 {[%emt 0:00:10]} Rxd8 {[%emt 0:04:19]} 33. Rxa1 {[%emt 0:00:08]} Bd3 {[%emt 0:00:01]} 34. Kf2 {[%emt 0:01:19]} Rxd5 {[%emt 0:00:03]} 35. Ke3 {[%emt 0:00:15]} Bc2 {[%emt 0:01:35]} 36. Bf1 {[%emt 0:01:01]} Rh5 {[%emt 0:00:41]} 37. Bc4+ {[%emt 0:00:22]} Kg7 {[%emt 0:00:19]} 38. Rg1+ {[%emt 0:00:37]} Kf6 {[%emt 0:00:04]} 39. Rg2 {[%emt 0:00:21]} Rh3+ {[%emt 0:00:36]} 40. Kd4 {[%emt 0:00:44]} Rc3 {[%emt 0:00:55]} 41. Re2 {[%emt 0:00:41]} Bd3 {[%emt 0:00:40]} 42. Rf2+ {[%emt 0:00:27]} Kg6 {[%emt 0:00:43]} 43. Bd5 {[%emt 0:00:25]} e3 {[%emt 0:00:29]} 44. Kxe3 {[%emt 0:00:27]} Bc4+ {[%emt 0:00:30]} 45. Kd4 {[%emt 0:00:19]} Bxd5 {[%emt 0:00:03]} 46. Kxd5 {[%emt 0:00:04]} h6 {[%emt 0:00:26]} 47. Ke4 {[%emt 0:00:24]} Rh3 {[%emt 0:00:57]} 48. Kf4 {[%emt 0:00:41]} Kh5 {[%emt 0:00:24]} 49. Rd2 {[%emt 0:00:40]} Kh4 {[%emt 0:00:07]} 50. Kf5 {[%emt 0:00:33]} Rc3 {[%emt 0:00:29]} 51. Kg6 {[%emt 0:00:33]} Rc6+ {[%emt 0:00:08]} 52. Kf5 {[%emt 0:00:16]} h5 {[%emt 0:00:43]} 53. Rd5 {[%emt 0:00:33]} Rc2 {[%emt 0:00:56]} 54. Rxa5 {[%emt 0:00:28]} Rxh2 {[%emt 0:00:01]} 55. Kg6 {[%emt 0:00:47]} Kg4 {[%emt 0:00:56]} 56. Ra4 {[%emt 0:00:46]} h4 {[%emt 0:00:10]} 57. Rxb4+ {[%emt 0:00:12]} Kg3 {[%emt 0:00:47]} 58. Kg5 {[%emt 0:00:25]} h3 {[%emt 0:00:01]} 59. Rg4+ {[%emt 0:00:25]} Kf3 {[%emt 0:00:01]} 60. Kh4 {[%emt 0:00:13]} Rg2 {[%emt 0:00:23]} 61. Rc4 {[%emt 0:01:19]} h2 {[%emt 0:00:24]} 62. Rc3+ {[%emt 0:00:36]} Kf4 {[%emt 0:00:05]} 63. Rc4+ {[%emt 0:00:29]} Ke5 {[%emt 0:00:13]} 64. Rc5+ {[%emt 0:00:30]} Kd6 {[%emt 0:00:11]} 65. Rc1 {[%emt 0:00:30]} Rg1 {[%emt 0:00:07]} 0-1

[Event "50th Ciudad Sevilla 2024"]
[Site "Sevilla"]
[Date "2025.01.13"]
[Round "3.12"]
[White "Marin, Mihail"]
[Black "Morais, Miguel Almeida"]
[Result "0-1"]
[Annotator "ChessBase"]
[ECO "D02"]
[WhiteElo "2431"]
[BlackElo "2132"]
[PlyCount "93"]
[EventDate "2025.01.10"]
[EventType "swiss"]
[EventCountry "ESP"]
[SourceTitle "playchess.com"]
[Source "ChessBase"]
[SourceQuality "1"]
[TimeControl "90+30"]

1. d4 {[%emt 0:00:00]} d5 {[%emt 0:00:00]} 2. Nf3 {[%emt 0:00:00]} Nf6 {[%emt 0:00:00]} 3. g3 {[%emt 0:00:00]} Bf5 {[%emt 0:00:00]} 4. Bg2 {[%emt 0:00:00]} e6 {[%emt 0:00:00]} 5. c4 {[%emt 0:00:00]} c6 {[%emt 0:00:00]} 6. Nc3 {[%emt 0:00:00]} h6 {[%emt 0:00:00]} 7. Qb3 {[%emt 0:00:00]} Qb6 {[%emt 0:00:00]} 8. c5 {[%emt 0:00:00]} Qxb3 {[%emt 0:00:00]} 9. axb3 {[%emt 0:00:00]} Be7 {[%emt 0:00:00]} 10. b4 {[%emt 0:00:00]} O-O {[%emt 0:00:00]} 11. O-O {[%emt 0:00:00]} a6 {[%emt 0:00:00]} 12. h3 {[%emt 0:00:00]} Nbd7 {[%emt 0:00:00]} 13. g4 {[%emt 0:00:00]} Bh7 {[%emt 0:00:00]} 14. Bf4 {[%emt 0:00:00]} Ne4 {[%emt 0:00:00]} 15. Nxe4 {[%emt 0:00:00]} Bxe4 {[%emt 0:00:00]} 16. Nd2 {[%emt 0:00:00]} Bxg2 {[%emt 0:00:00]} 17. Kxg2 {[%emt 0:00:00]} Bf6 {[%emt 0:00:00]} 18. Bd6 {[%emt 0:00:00]} Rfe8 {[%emt 0:00:00]} 19. Nb3 {[%emt 0:00:00]} e5 {[%emt 0:00:00]} 20. dxe5 {[%emt 0:00:00]} Nxe5 {[%emt 0:00:00]} 21. Na5 {[%emt 0:00:00]} Nc4 {[%emt 0:00:00]} 22. Nxb7 {[%emt 0:00:00]} Rxe2 {[%emt 0:00:00]} 23. Ra2 {[%emt 0:00:00]} Rxb2 {[%emt 0:00:00]} 24. Rxb2 {[%emt 0:00:00]} Bxb2 {[%emt 0:00:00]} 25. Rb1 {[%emt 0:00:00]} Bf6 {[%emt 0:00:00]} 26. Na5 {[%emt 0:00:00]} Nxd6 {[%emt 0:00:00]} 27. cxd6 {[%emt 0:00:00]} Rd8 {[%emt 0:00:00]} 28. Rc1 {[%emt 0:00:00]} Rxd6 {[%emt 0:00:00]} 29. Rxc6 {[%emt 0:00:00]} Be7 {[%emt 0:00:00]} 30. Rc8+ {[%emt 0:03:45]} Kh7 {[%emt 0:00:00]} 31. Rc7 {[%emt 0:00:41]} Re6 {[%emt 0:00:00]} 32. Nc6 {[%emt 0:00:08]} Bf6 {[%emt 0:00:00]} 33. f4 {[%emt 0:02:14]} Re2+ {[%emt 0:00:00]} 34. Kf3 {[%emt 0:03:08]} Rc2 {[%emt 0:00:00]} 35. Rc8 {[%emt 0:00:12]} Rc3+ {[%emt 0:00:00]} 36. Ke2 {[%emt 0:02:28]} Rc4 {[%emt 0:00:00]} 37. Kf3 {[%emt 0:01:14]} Bc3 {[%emt 0:02:45]} 38. Ne7 {[%emt 0:03:22]} Bxb4 {[%emt 0:01:45]} 39. Rxc4 {[%emt 0:00:08]} dxc4 {[%emt 0:00:05]} 40. Nd5 {[%emt 0:00:17]} a5 {[%emt 0:01:32]} 41. Ke4 {[%emt 0:01:12]} Bd2 {[%emt 0:01:18]} 42. Kd4 {[%emt 0:00:40]} c3 {[%emt 0:00:27]} 43. Kd3 {[%emt 0:00:05]} a4 {[%emt 0:05:57]} 44. f5 {[%emt 0:01:55]} a3 {[%emt 0:01:59]} 45. Nb4 {[%emt 0:00:06]} h5 {[%emt 0:00:41]} 46. g5 {[%emt 0:01:51]} g6 {[%emt 0:02:32]} 47. Kd4 {[%emt 0:00:37]} 0-1

[Event "50th Ciudad Sevilla 2024"]
[Site "Sevilla"]
[Date "2025.01.13"]
[Round "3.13"]
[White "Pinho, Paulo"]
[Black "Xu, Minghui"]
[Result "0-1"]
[Annotator "ChessBase"]
[ECO "E11"]
[WhiteElo "2093"]
[BlackElo "2428"]
[PlyCount "90"]
[EventDate "2025.01.10"]
[EventType "swiss"]
[EventCountry "ESP"]
[SourceTitle "playchess.com"]
[Source "ChessBase"]
[SourceQuality "1"]
[TimeControl "90+30"]

1. d4 {[%emt 0:00:00]} Nf6 {[%emt 0:00:00]} 2. c4 {[%emt 0:00:00]} e6 {[%emt 0:00:00]} 3. Nf3 {[%emt 0:00:00]} d5 {[%emt 0:00:00]} 4. g3 {[%emt 0:00:00]} Bb4+ {[%emt 0:00:00]} 5. Bd2 {[%emt 0:00:00]} Be7 {[%emt 0:00:00]} 6. Bg2 {[%emt 0:00:00]} O-O {[%emt 0:00:00]} 7. O-O {[%emt 0:00:00]} c6 {[%emt 0:00:00]} 8. Qc2 {[%emt 0:00:00]} Nbd7 {[%emt 0:00:00]} 9. Rd1 {[%emt 0:00:00]} a5 {[%emt 0:00:00]} 10. b3 {[%emt 0:00:00]} b5 {[%emt 0:00:00]} 11. Bf4 {[%emt 0:00:00]} Ba6 {[%emt 0:00:00]} 12. Nbd2 {[%emt 0:00:00]} Nh5 {[%emt 0:00:00]} 13. c5 {[%emt 0:00:00]} Nxf4 {[%emt 0:00:00]} 14. gxf4 {[%emt 0:00:00]} f5 {[%emt 0:00:00]} 15. Kh1 {[%emt 0:00:00]} Kh8 {[%emt 0:00:00]} 16. Qd3 {[%emt 0:00:00]} Bf6 {[%emt 0:00:00]} 17. Qe3 {[%emt 0:00:00]} Qe8 {[%emt 0:00:00]} 18. Rg1 {[%emt 0:00:00]} h6 {[%emt 0:00:00]} 19. Bh3 {[%emt 0:00:00]} Rg8 {[%emt 0:00:00]} 20. Rac1 {[%emt 0:00:00]} g6 {[%emt 0:00:00]} 21. Rg3 {[%emt 0:00:00]} Kh7 {[%emt 0:00:00]} 22. Rcg1 {[%emt 0:00:00]} Qe7 {[%emt 0:00:00]} 23. Bf1 {[%emt 0:00:00]} b4 {[%emt 0:00:00]} 24. Rh3 {[%emt 0:00:00]} Rae8 {[%emt 0:00:00]} 25. Ng5+ {[%emt 0:00:00]} Kg7 {[%emt 0:00:00]} 26. Rhg3 {[%emt 0:00:00]} hxg5 {[%emt 0:00:00]} 27. fxg5 {[%emt 0:00:00]} Bxd4 {[%emt 0:00:00]} 28. Qxd4+ {[%emt 0:00:00]} e5 {[%emt 0:00:00]} 29. Qb2 {[%emt 0:00:00]} Qxc5 {[%emt 0:00:00]} 30. e3 {[%emt 0:08:13]} Bxf1 {[%emt 0:00:00]} 31. Nxf1 {[%emt 0:00:21]} Qc3 {[%emt 0:00:00]} 32. Qe2 {[%emt 0:00:23]} e4 {[%emt 0:00:00]} 33. Rh3 {[%emt 0:02:41]} Rh8 {[%emt 0:01:47]} 34. Rh6 {[%emt 0:02:01]} Ne5 {[%emt 0:00:45]} 35. Qa6 {[%emt 0:00:30]} Qc5 {[%emt 0:01:28]} 36. Rxh8 {[%emt 0:01:40]} Kxh8 {[%emt 0:01:11]} 37. Rg3 {[%emt 0:00:20]} Kg7 {[%emt 0:01:11]} 38. Kg2 {[%emt 0:01:04]} Rh8 {[%emt 0:04:07]} 39. Qb7+ {[%emt 0:01:29]} Nf7 {[%emt 0:00:07]} 40. Kg1 {[%emt 0:00:32]} Qd6 {[%emt 0:00:32]} 41. Rg2 {[%emt 0:00:32]} c5 {[%emt 0:03:11]} 42. Ng3 {[%emt 0:00:17]} Qe5 {[%emt 0:00:04]} 43. Qa7 {[%emt 0:01:14]} d4 {[%emt 0:00:34]} 44. Qxa5 {[%emt 0:01:10]} d3 {[%emt 0:01:09]} 45. Nf1 {[%emt 0:00:05]} Rd8 {[%emt 0:00:21]} 0-1

[Event "50th Ciudad Sevilla 2024"]
[Site "Sevilla"]
[Date "2025.01.13"]
[Round "3.14"]
[White "Del Rio De Angelis, Salvador G."]
[Black "Ramon Perez, Jose Luis"]
[Result "1/2-1/2"]
[Annotator "ChessBase"]
[ECO "E61"]
[WhiteElo "2403"]
[BlackElo "2120"]
[PlyCount "86"]
[EventDate "2025.01.10"]
[EventType "swiss"]
[EventCountry "ESP"]
[SourceTitle "playchess.com"]
[Source "ChessBase"]
[SourceQuality "1"]
[TimeControl "90+30"]

1. d4 {[%emt 0:00:00]} Nf6 {[%emt 0:00:00]} 2. c4 {[%emt 0:00:00]} g6 {[%emt 0:00:00]} 3. Nf3 {[%emt 0:00:00]} Bg7 {[%emt 0:00:00]} 4. e3 {[%emt 0:00:00]} O-O {[%emt 0:00:00]} 5. Be2 {[%emt 0:00:00]} d6 {[%emt 0:00:00]} 6. Nc3 {[%emt 0:00:00]} Nbd7 {[%emt 0:00:00]} 7. O-O {[%emt 0:00:00]} e5 {[%emt 0:00:00]} 8. e4 {[%emt 0:00:00]} c6 {[%emt 0:00:00]} 9. d5 {[%emt 0:00:00]} Nc5 {[%emt 0:00:00]} 10. Qc2 {[%emt 0:00:00]} Bg4 {[%emt 0:00:00]} 11. h3 {[%emt 0:00:00]} Bxf3 {[%emt 0:00:00]} 12. Bxf3 {[%emt 0:00:00]} cxd5 {[%emt 0:00:00]} 13. cxd5 {[%emt 0:00:00]} Rc8 {[%emt 0:00:00]} 14. Qd1 {[%emt 0:00:00]} Ne8 {[%emt 0:00:00]} 15. b4 {[%emt 0:00:00]} Nd7 {[%emt 0:00:00]} 16. Bd2 {[%emt 0:00:00]} f5 {[%emt 0:00:00]} 17. Rc1 {[%emt 0:00:00]} Ndf6 {[%emt 0:00:00]} 18. Qa4 {[%emt 0:00:00]} a6 {[%emt 0:00:00]} 19. b5 {[%emt 0:00:00]} Nc7 {[%emt 0:00:00]} 20. bxa6 {[%emt 0:00:00]} Nxa6 {[%emt 0:00:00]} 21. exf5 {[%emt 0:00:00]} gxf5 {[%emt 0:00:00]} 22. Be2 {[%emt 0:00:00]} Nc5 {[%emt 0:00:00]} 23. Qb5 {[%emt 0:00:00]} Ra8 {[%emt 0:00:00]} 24. Qb1 {[%emt 0:00:00]} Nfd7 {[%emt 0:00:00]} 25. Nb5 {[%emt 0:00:00]} Nb6 {[%emt 0:00:00]} 26. Bb4 {[%emt 0:00:00]} Nba4 {[%emt 0:00:00]} 27. Bd1 {[%emt 0:00:00]} b6 {[%emt 0:00:00]} 28. Rc4 {[%emt 0:00:00]} Qd7 {[%emt 0:00:00]} 29. Nxd6 {[%emt 0:00:00]} Qxd6 {[%emt 0:00:00]} 30. Bxa4 {[%emt 0:00:00]} Kh8 {[%emt 0:00:00]} 31. Bc6 {[%emt 0:00:00]} Rab8 {[%emt 0:00:00]} 32. a4 {[%emt 0:00:00]} Qg6 {[%emt 0:00:00]} 33. Rd1 {[%emt 0:00:00]} Rg8 {[%emt 0:00:00]} 34. d6 {[%emt 0:00:00]} e4 {[%emt 0:00:00]} 35. g3 {[%emt 0:00:00]} h5 {[%emt 0:00:00]} 36. Bd5 {[%emt 0:01:10]} Rgd8 {[%emt 0:00:00]} 37. Rd2 {[%emt 0:02:45]} h4 {[%emt 0:00:00]} 38. g4 {[%emt 0:01:42]} Qg5 {[%emt 0:05:13]} 39. Qd1 {[%emt 0:03:22]} Rxd6 {[%emt 0:05:35]} 40. Bxe4 {[%emt 0:04:32]} Rxd2 {[%emt 0:00:06]} 41. Bxd2 {[%emt 0:00:03]} Rd8 {[%emt 0:00:03]} 42. Bxg5 {[%emt 0:00:08]} Rxd1+ {[%emt 0:00:02]} 43. Kg2 {[%emt 0:00:10]} fxe4 {[%emt 0:00:28]} 1/2-1/2

[Event "50th Ciudad Sevilla 2024"]
[Site "Sevilla"]
[Date "2025.01.13"]
[Round "3.15"]
[White "Isanzhulov, Arystan"]
[Black "Aeschbacher, Dimitri"]
[Result "1-0"]
[Annotator "ChessBase"]
[ECO "A15"]
[WhiteElo "2397"]
[BlackElo "2095"]
[PlyCount "33"]
[EventDate "2025.01.10"]
[EventType "swiss"]
[EventCountry "ESP"]
[SourceTitle "playchess.com"]
[Source "ChessBase"]
[SourceQuality "1"]
[TimeControl "90+30"]

1. Nf3 {[%emt 0:00:00]} Nf6 {[%emt 0:00:00]} 2. c4 {[%emt 0:00:00]} e6 {[%emt 0:00:00]} 3. e3 {[%emt 0:00:00]} b6 {[%emt 0:00:00]} 4. b3 {[%emt 0:00:00]} Bb7 {[%emt 0:00:00]} 5. Bb2 {[%emt 0:00:00]} Be7 {[%emt 0:00:00]} 6. g3 {[%emt 0:00:00]} O-O {[%emt 0:00:00]} 7. Bg2 {[%emt 0:00:00]} d6 {[%emt 0:00:00]} 8. O-O {[%emt 0:00:00]} e5 {[%emt 0:00:00]} 9. d4 {[%emt 0:00:00]} exd4 {[%emt 0:00:00]} 10. Nxd4 {[%emt 0:00:00]} Bxg2 {[%emt 0:00:00]} 11. Kxg2 {[%emt 0:00:00]} d5 {[%emt 0:00:00]} 12. Qf3 {[%emt 0:00:00]} c6 {[%emt 0:00:00]} 13. Rd1 {[%emt 0:00:00]} Qc7 {[%emt 0:00:00]} 14. Nf5 {[%emt 0:00:00]} dxc4 {[%emt 0:00:00]} 15. Qf4 {[%emt 0:00:00]} Rc8 {[%emt 0:00:00]} 16. Qg5 {[%emt 0:00:00]} g6 {[%emt 0:00:00]} 17. Nxe7+ {[%emt 0:00:00]} 1-0

[Event "50th Ciudad Sevilla 2024"]
[Site "Sevilla"]
[Date "2025.01.13"]
[Round "3.16"]
[White "Kirszenberg, Marc"]
[Black "Matamoros Franco, Carlos S."]
[Result "1/2-1/2"]
[Annotator "ChessBase"]
[ECO "E77"]
[WhiteElo "2089"]
[BlackElo "2394"]
[PlyCount "72"]
[EventDate "2025.01.10"]
[EventType "swiss"]
[EventCountry "ESP"]
[SourceTitle "playchess.com"]
[Source "ChessBase"]
[SourceQuality "1"]
[TimeControl "90+30"]

1. d4 {[%emt 0:00:00]} Nf6 {[%emt 0:00:00]} 2. c4 {[%emt 0:00:00]} c5 {[%emt 0:00:00]} 3. d5 {[%emt 0:00:00]} g6 {[%emt 0:00:00]} 4. Nc3 {[%emt 0:00:00]} Bg7 {[%emt 0:00:00]} 5. e4 {[%emt 0:00:00]} d6 {[%emt 0:00:00]} 6. f4 {[%emt 0:00:00]} O-O {[%emt 0:00:00]} 7. Nf3 {[%emt 0:00:00]} e6 {[%emt 0:00:00]} 8. Be2 {[%emt 0:00:00]} exd5 {[%emt 0:00:00]} 9. cxd5 {[%emt 0:00:00]} Nbd7 {[%emt 0:00:00]} 10. O-O {[%emt 0:00:00]} Re8 {[%emt 0:00:00]} 11. Nd2 {[%emt 0:00:00]} c4 {[%emt 0:00:00]} 12. Bxc4 {[%emt 0:00:00]} Nc5 {[%emt 0:00:00]} 13. e5 {[%emt 0:00:00]} dxe5 {[%emt 0:00:00]} 14. fxe5 {[%emt 0:00:00]} Rxe5 {[%emt 0:00:00]} 15. Nf3 {[%emt 0:00:00]} Bg4 {[%emt 0:00:00]} 16. Qd4 {[%emt 0:00:00]} Re4 {[%emt 0:00:00]} 17. Nxe4 {[%emt 0:00:00]} Nfxe4 {[%emt 0:00:00]} 18. Qe3 {[%emt 0:00:00]} Qb6 {[%emt 0:00:00]} 19. Kh1 {[%emt 0:00:00]} Nd6 {[%emt 0:00:00]} 20. Qf4 {[%emt 0:00:00]} Bxf3 {[%emt 0:03:18]} 21. Qxf3 {[%emt 0:00:00]} Nxc4 {[%emt 0:00:21]} 22. Qxf7+ {[%emt 0:00:00]} Kh8 {[%emt 0:00:04]} 23. Bg5 {[%emt 0:00:00]} Ne5 {[%emt 0:02:53]} 24. Qe7 {[%emt 0:00:00]} Ncd7 {[%emt 0:06:25]} 25. Rae1 {[%emt 0:00:00]} h6 {[%emt 0:00:23]} 26. Bf4 {[%emt 0:00:00]} Nd3 {[%emt 0:00:45]} 27. Qxd7 {[%emt 0:00:00]} Nxe1 {[%emt 0:00:38]} 28. Rxe1 {[%emt 0:00:00]} Rf8 {[%emt 0:00:41]} 29. Bg3 {[%emt 0:00:00]} Qxb2 {[%emt 0:00:20]} 30. h3 {[%emt 0:00:00]} Qc3 {[%emt 0:00:16]} 31. Kh2 {[%emt 0:00:00]} h5 {[%emt 0:00:17]} 32. Re8 {[%emt 0:00:29]} Rxe8 {[%emt 0:01:03]} 33. Qxe8+ {[%emt 0:00:02]} Kh7 {[%emt 0:00:04]} 34. Qe7 {[%emt 0:00:50]} Kg8 {[%emt 0:00:42]} 35. Qe8+ {[%emt 0:00:23]} Kh7 {[%emt 0:00:03]} 36. Qe7 {[%emt 0:00:27]} Kg8 {[%emt 0:00:07]} 1/2-1/2

[Event "50th Ciudad Sevilla 2024"]
[Site "Sevilla"]
[Date "2025.01.13"]
[Round "3.17"]
[White "Lin, Yingrui"]
[Black "Iturbide Arnedo, Oscar"]
[Result "1-0"]
[Annotator "ChessBase"]
[ECO "A07"]
[WhiteElo "2393"]
[BlackElo "2094"]
[PlyCount "65"]
[EventDate "2025.01.10"]
[EventType "swiss"]
[EventCountry "ESP"]
[SourceTitle "playchess.com"]
[Source "ChessBase"]
[SourceQuality "1"]
[TimeControl "90+30"]

1. Nf3 {[%emt 0:00:00]} Nf6 {[%emt 0:00:00]} 2. g3 {[%emt 0:00:00]} d5 {[%emt 0:00:00]} 3. Bg2 {[%emt 0:00:00]} c6 {[%emt 0:00:00]} 4. O-O {[%emt 0:00:00]} Bg4 {[%emt 0:00:00]} 5. h3 {[%emt 0:00:00]} Bh5 {[%emt 0:00:00]} 6. d4 {[%emt 0:00:00]} e6 {[%emt 0:00:00]} 7. c4 {[%emt 0:00:00]} Nbd7 {[%emt 0:00:00]} 8. cxd5 {[%emt 0:00:00]} exd5 {[%emt 0:00:00]} 9. Ne5 {[%emt 0:00:00]} Nxe5 {[%emt 0:00:00]} 10. dxe5 {[%emt 0:00:00]} Ne4 {[%emt 0:00:00]} 11. Bxe4 {[%emt 0:00:00]} dxe4 {[%emt 0:00:00]} 12. Nc3 {[%emt 0:00:00]} Qc8 {[%emt 0:00:00]} 13. Nxe4 {[%emt 0:00:00]} Qxh3 {[%emt 0:00:00]} 14. Ng5 {[%emt 0:00:00]} Qc8 {[%emt 0:00:00]} 15. e6 {[%emt 0:00:00]} f6 {[%emt 0:02:40]} 16. Nf7 {[%emt 0:00:00]} Bxf7 {[%emt 0:00:35]} 17. exf7+ {[%emt 0:00:00]} Kxf7 {[%emt 0:00:08]} 18. Qb3+ {[%emt 0:00:00]} Qe6 {[%emt 0:04:11]} 19. Qxb7+ {[%emt 0:00:00]} Be7 {[%emt 0:00:02]} 20. Bf4 {[%emt 0:00:00]} g5 {[%emt 0:00:56]} 21. Bc7 {[%emt 0:00:00]} h5 {[%emt 0:01:55]} 22. Rac1 {[%emt 0:00:00]} h4 {[%emt 0:00:51]} 23. Qxc6 {[%emt 0:00:00]} Qxa2 {[%emt 0:00:55]} 24. Rc4 {[%emt 0:00:00]} Rae8 {[%emt 0:00:55]} 25. f4 {[%emt 0:00:00]} Qb3 {[%emt 0:00:46]} 26. Rc3 {[%emt 0:00:00]} Qe6 {[%emt 0:00:27]} 27. fxg5 {[%emt 0:00:00]} Qxc6 {[%emt 0:00:34]} 28. Rxc6 {[%emt 0:00:00]} hxg3 {[%emt 0:00:31]} 29. gxf6 {[%emt 0:00:00]} Bb4 {[%emt 0:00:26]} 30. Bxg3 {[%emt 0:00:00]} Rxe2 {[%emt 0:00:37]} 31. Rd1 {[%emt 0:00:00]} Rg8 {[%emt 0:00:29]} 32. Rd7+ {[%emt 0:00:00]} Be7 {[%emt 0:00:42]} 33. Kf1 {[%emt 0:00:00]} 1-0